bitfinex/quotes_BTCUSD_20250428
["timestamp","ask_amount","ask_price","bid_price","bid_amount"]
[1745827485779,0.09156704,94827.0,94826.0,0.48153229]
[1745827486181,0.09156704,94827.0,94826.0,0.45488275]
[1745827486769,0.03673455,94827.0,94826.0,0.45488275]
[1745827487326,0.03673455,94827.0,94826.0,0.46540481]
[1745827487869,0.03873455,94827.0,94826.0,0.47240481]
[1745827490543,0.0294086,94827.0,94826.0,0.47240481]
[1745827496133,0.0294086,94827.0,94826.0,0.49905435]
[1745827503574,0.0294086,94827.0,94826.0,0.47240481]
[1745827505344,0.0294086,94827.0,94826.0,0.48694566]
[1745827506060,1e-08,94829.0,94828.0,0.76544902]
[1745827506262,1e-08,94829.0,94828.0,0.91923916]
[1745827506464,0.000849,94842.0,94841.0,0.01454085]
[1745827506683,0.0004245,94847.0,94842.0,0.56541788]
[1745827507046,0.02705366,94843.0,94842.0,0.70679985]
[1745827507825,0.01094788,94843.0,94842.0,0.70679985]
[1745827508828,0.02894788,94843.0,94842.0,0.70779985]
[1745827508970,0.04894788,94843.0,94842.0,0.70879985]
[1745827515294,0.04831049,94843.0,94842.0,0.70879985]
[1745827515996,0.0004245,94847.0,94843.0,0.35454085]
[1745827516208,0.0004245,94847.0,94843.0,0.46143099]
[1745827516413,0.00983451,94846.0,94843.0,0.46143099]
[1745827516816,0.0004245,94847.0,94843.0,0.46143099]
[1745827517416,0.0194245,94844.0,94843.0,0.46343099]
[1745827518705,0.0294245,94844.0,94843.0,0.46443099]
[1745827518927,0.0294245,94844.0,94843.0,0.50412254]
[1745827520347,0.0294245,94844.0,94843.0,0.50346574]
[1745827520584,0.01608281,94844.0,94843.0,0.50346574]
[1745827526720,0.04929292,94844.0,94843.0,0.50346574]
[1745827527818,0.01608281,94844.0,94843.0,0.50346574]
[1745827532255,0.0004245,94847.0,94845.0,0.35454085]
[1745827532454,0.0808733,94869.0,94857.0,0.01454085]
[1745827532629,0.0332733,94869.0,94866.0,0.22136304]
[1745827532813,0.03331906,94869.0,94868.0,0.21081924]
[1745827533034,0.03331906,94869.0,94868.0,0.31770938]
[1745827534118,0.03331906,94869.0,94868.0,0.33455225]
[1745827535425,0.03331906,94869.0,94868.0,0.34255225]
[1745827536495,0.03331906,94869.0,94868.0,0.38223334]
[1745827536732,0.03331906,94869.0,94868.0,0.39283505]
[1745827537731,0.03331906,94869.0,94868.0,0.38223334]
[1745827544477,0.03331906,94869.0,94868.0,0.72223334]
[1745827545109,0.03331906,94869.0,94868.0,0.73677419]
[1745827545268,0.03331906,94869.0,94868.0,0.65677419]
[1745827546573,1e-08,94881.0,94879.0,0.56533565]
[1745827546776,0.00932595,94904.0,94888.0,0.5507748]
[1745827546974,0.00932595,94904.0,94888.0,0.6390948]
[1745827547179,0.00245754,94889.0,94888.0,0.74598494]
[1745827548032,0.00245754,94889.0,94888.0,0.74898494]
[1745827548202,0.00245754,94889.0,94888.0,0.94898494]
[1745827548404,0.00245754,94889.0,94888.0,0.96352579]
[1745827548733,0.00245754,94889.0,94888.0,0.96952579]
[1745827548932,0.00245754,94889.0,94888.0,0.88120579]
[1745827549080,0.00245754,94889.0,94888.0,0.96952579]
[1745827549432,0.00236485,94889.0,94888.0,0.96952579]
[1745827551748,0.00236485,94889.0,94888.0,0.88120579]
[1745827551966,0.00236485,94889.0,94888.0,0.96952579]
[1745827552621,0.00236485,94889.0,94888.0,0.96652579]
[1745827552818,0.00236485,94889.0,94888.0,0.95198494]
[1745827553130,0.00236485,94889.0,94888.0,0.94598494]
[1745827553314,0.00236485,94889.0,94888.0,0.75198494]
[1745827553518,0.00236485,94889.0,94888.0,0.74598494]
[1745827554077,0.00236485,94889.0,94888.0,0.75898494]
[1745827554279,0.00236485,94889.0,94888.0,0.75598494]
[1745827554654,0.00236485,94889.0,94888.0,0.76398494]
[1745827559593,0.00236485,94889.0,94888.0,0.2287748]
[1745827559885,0.00236485,94889.0,94888.0,0.3170948]
[1745827570644,0.00212466,94889.0,94888.0,0.3170948]
[1745827570830,0.00212466,94889.0,94888.0,0.2287748]
[1745827571041,0.00212466,94889.0,94888.0,0.3170548]
[1745827571258,0.00212466,94889.0,94888.0,0.2287748]
[1745827571461,0.00212466,94889.0,94888.0,0.3170548]
[1745827572755,0.00212466,94889.0,94888.0,0.42394494]
[1745827576417,0.00212466,94889.0,94888.0,0.33566494]
[1745827576589,0.00212466,94889.0,94888.0,0.42394494]
[1745827577811,0.00212466,94889.0,94888.0,0.20650003]
[1745827578544,0.00212466,94889.0,94888.0,0.32899483]
[1745827578724,0.06736553,94889.0,94888.0,0.01132989]
[1745827578929,0.11566553,94889.0,94888.0,0.01132989]
[1745827579104,0.23306787,94889.0,94888.0,0.01132989]
[1745827579487,0.0962,94886.0,94866.0,0.08828]
[1745827579698,0.17348016,94878.0,94866.0,0.08828]
[1745827579898,0.04880847,94877.0,94863.0,0.21082985]
[1745827580495,0.04880847,94877.0,94865.0,0.21082492]
[1745827581346,0.04880847,94877.0,94862.0,0.29911068]
[1745827581557,0.04880847,94877.0,94868.0,0.00784287]
[1745827581558,0.0492,94874.0,94868.0,0.00784287]
[1745827581763,0.0923,94871.0,94856.0,0.08828]
[1745827581961,0.0469,94860.0,94844.0,0.0008484]
[1745827582078,0.34,94858.0,94844.0,0.0008484]
[1745827582287,0.34,94856.0,94844.0,0.0008484]
[1745827582501,0.34,94854.0,94844.0,0.0008484]
[1745827582705,0.34,94852.0,94844.0,0.0008484]
[1745827582903,0.45832456,94851.0,94844.0,0.0008484]
[1745827583125,0.45621609,94851.0,94850.0,0.0038484]
[1745827583359,0.45621609,94851.0,94850.0,0.0058484]
[1745827583580,0.45621609,94851.0,94850.0,0.00389416]
[1745827583943,0.45621609,94851.0,94850.0,0.00589416]
[1745827584607,0.45621609,94851.0,94850.0,0.00289416]
[1745827585037,0.45621609,94851.0,94850.0,0.00589416]
[1745827585448,0.45621609,94851.0,94850.0,0.00089416]
[1745827585605,0.46693719,94851.0,94850.0,0.00689416]
[1745827586002,0.46693719,94851.0,94850.0,0.00389416]
[1745827586203,0.46693719,94851.0,94850.0,0.00589416]
[1745827586408,0.51832091,94851.0,94850.0,0.00589416]
[1745827590763,0.46693719,94851.0,94850.0,0.00589416]
[1745827592627,0.51543719,94851.0,94850.0,0.00589416]
[1745827592832,0.51543719,94851.0,94844.0,0.0008484]
[1745827592833,0.34,94850.0,94844.0,0.0008484]
[1745827593176,0.10899861,94849.0,94844.0,0.0008484]
[1745827593388,0.11832456,94849.0,94844.0,0.0008484]
[1745827595403,0.11832456,94849.0,94844.0,0.0038484]
[1745827595636,0.11832456,94849.0,94844.0,0.0058484]
[1745827595840,0.11832456,94849.0,94830.0,0.08594709]
[1745827595841,0.00347755,94837.0,94830.0,0.0008484]
[1745827596073,0.10899861,94836.0,94830.0,0.00089415]
[1745827596313,0.0474,94835.0,94830.0,0.00089415]
[1745827596535,0.34,94833.0,94830.0,0.00089415]
[1745827596759,0.10899861,94832.0,94830.0,0.00089415]
[1745827599215,0.00347755,94831.0,94830.0,0.00189415]
[1745827599515,0.11036769,94831.0,94830.0,0.00189415]
[1745827599983,0.12635531,94831.0,94830.0,0.00189415]
[1745827600350,0.12635531,94831.0,94830.0,0.00089415]
[1745827600713,0.12635531,94831.0,94830.0,0.00189415]
[1745827601120,0.46635531,94831.0,94830.0,0.00189415]
[1745827601317,0.0015834,94824.0,94813.0,0.00210918]
[1745827601522,0.3873,94822.0,94813.0,0.00215493]
[1745827601724,0.34,94820.0,94813.0,0.00215493]
[1745827601910,0.34,94818.0,94813.0,4.575e-05]
[1745827602111,0.10689014,94817.0,94813.0,4.575e-05]
[1745827602518,0.08042374,94816.0,94813.0,4.575e-05]
[1745827602726,0.10689014,94815.0,94813.0,4.575e-05]
[1745827602921,0.34,94814.0,94813.0,4.575e-05]
[1745827603276,0.44689014,94814.0,94813.0,0.00104575]
[1745827604262,0.44689014,94814.0,94813.0,0.00304575]
[1745827604825,0.44689014,94814.0,94813.0,0.00204575]
[1745827605049,0.49157915,94814.0,94813.0,0.00204575]
[1745827605445,0.49316255,94814.0,94813.0,0.00304575]
[1745827605652,0.47782269,94814.0,94812.0,0.0008484]
[1745827605798,0.44689014,94813.0,94812.0,0.0008484]
[1745827606145,0.47623957,94813.0,94812.0,0.0008484]
[1745827606321,0.52413957,94813.0,94812.0,0.0008484]
[1745827608454,0.52513957,94813.0,94812.0,0.0008484]
[1745827608651,0.52613957,94813.0,94812.0,0.0008484]
[1745827610491,0.57891187,94813.0,94812.0,0.0008484]
[1745827610906,0.34,94812.0,94811.0,0.001265]
[1745827611123,0.47623957,94812.0,94811.0,0.001265]
[1745827612845,0.47623957,94812.0,94789.0,0.15553605]
[1745827613162,0.34,94810.0,94805.0,0.00013733]
[1745827613383,0.13623957,94809.0,94805.0,0.00013733]
[1745827613541,0.02934943,94808.0,94805.0,0.00013733]
[1745827613736,0.13623957,94807.0,94805.0,0.00013733]
[1745827613939,0.02934943,94806.0,94805.0,0.00013733]
[1745827614268,0.13623957,94806.0,94805.0,0.00013733]
[1745827614825,0.13623957,94806.0,94805.0,0.00113733]
[1745827615257,0.13623957,94806.0,94805.0,0.00013733]
[1745827615620,0.13623957,94806.0,94805.0,0.00113733]
[1745827617848,0.14668012,94806.0,94805.0,0.00113733]
[1745827621584,0.1665018,94806.0,94805.0,0.00113733]
[1745827622466,0.14668012,94806.0,94805.0,0.00113733]
[1745827622687,0.40946267,94804.0,94787.0,0.0008482]
[1745827622886,0.26424721,94797.0,94787.0,0.00089394]
[1745827623193,0.03198718,94796.0,94787.0,0.00089394]
[1745827623890,0.03198718,94796.0,94787.0,0.00189394]
[1745827624092,0.03198718,94796.0,94787.0,0.01300001]
[1745827624303,0.03198718,94796.0,94787.0,0.00189394]
[1745827624660,0.03198718,94796.0,94787.0,0.00489394]
[1745827625230,0.03198718,94796.0,94787.0,0.00389394]
[1745827625500,0.03198718,94796.0,94787.0,0.0174439]
[1745827625800,0.03198718,94796.0,94787.0,0.00689394]
[1745827625975,0.02934943,94795.0,94787.0,0.21789207]
[1745827626184,0.03198704,94794.0,94787.0,0.01467545]
[1745827626385,0.4388121,94793.0,94787.0,0.01467545]
[1745827626546,0.44145006,94792.0,94787.0,0.01467545]
[1745827626943,0.34,94790.0,94787.0,0.00389394]
[1745827627091,0.34,94788.0,94787.0,0.00389394]
[1745827627297,0.47623957,94788.0,94787.0,0.00389394]
[1745827628523,0.47623957,94788.0,94787.0,0.00689394]
[1745827628737,0.47623957,94788.0,94787.0,0.00389394]
[1745827629124,0.47623957,94788.0,94787.0,0.00489394]
[1745827631508,0.88570224,94788.0,94787.0,0.00489394]
[1745827631667,0.4388121,94788.0,94787.0,0.00489394]
[1745827633054,0.4388121,94788.0,94777.0,0.0008486]
[1745827633241,0.40312486,94787.0,94777.0,0.0008486]
[1745827633557,0.02934943,94786.0,94777.0,0.0008486]
[1745827633712,0.37113735,94787.0,94777.0,0.0008486]
[1745827633713,0.13887779,94785.0,94777.0,0.00890973]
[1745827633882,0.02934943,94784.0,94777.0,0.00865008]
[1745827634123,0.13887773,94783.0,94777.0,0.00865008]
[1745827634321,0.02934943,94782.0,94777.0,0.00865008]
[1745827634525,0.13887774,94781.0,94777.0,0.00865008]
[1745827634775,0.02934943,94780.0,94777.0,0.00865008]
[1745827635097,0.02934943,94780.0,94777.0,0.0008486]
[1745827635098,0.0919,94778.0,94777.0,0.0008486]
[1745827635293,0.40861407,94777.0,94774.0,0.0008488]
[1745827635550,0.88485364,94777.0,94774.0,0.0008488]
[1745827636396,0.88885364,94777.0,94774.0,0.0008488]
[1745827636729,0.92313972,94777.0,94774.0,0.0008488]
[1745827637682,0.91913972,94777.0,94774.0,0.0008488]
[1745827637921,0.92413972,94777.0,94774.0,0.0008488]
[1745827638535,0.92213972,94777.0,94774.0,0.0008488]
[1745827638739,0.92513972,94777.0,94774.0,0.0008488]
[1745827642987,1.01353972,94777.0,94774.0,0.0008488]
[1745827643539,1.02808057,94777.0,94774.0,0.0008488]
[1745827643910,1.07378057,94777.0,94774.0,0.0008488]
[1745827644451,1.12378057,94777.0,94774.0,0.0008488]
[1745827645667,1.12378057,94777.0,94749.0,0.0008492]
[1745827645668,0.34,94758.0,94749.0,0.0008492]
[1745827645907,0.3888,94756.0,94749.0,0.0008492]
[1745827646110,0.52503957,94756.0,94755.0,0.00130546]
[1745827646757,0.59202022,94756.0,94755.0,0.00130546]
[1745827646930,0.60256122,94756.0,94755.0,0.00130546]
[1745827648321,0.60256122,94756.0,94755.0,0.00230546]
[1745827649018,0.70259217,94756.0,94755.0,0.00230546]
[1745827650682,0.70259217,94756.0,94738.0,0.0008486]
[1745827650683,0.39259361,94743.0,94738.0,0.0008486]
[1745827650880,0.17487461,94742.0,94739.0,0.0009863]
[1745827651181,0.06534512,94741.0,94739.0,0.0009863]
[1745827651320,0.10952947,94740.0,94739.0,0.0009863]
[1745827651520,0.17487459,94740.0,94739.0,0.0009863]
[1745827651925,0.17487459,94740.0,94739.0,0.0019863]
[1745827652346,0.17487459,94740.0,94739.0,0.0029863]
[1745827652957,0.17487459,94740.0,94738.0,0.0008486]
[1745827653176,0.06383451,94739.0,94738.0,0.0008486]
[1745827653499,0.17072465,94739.0,94738.0,0.0008486]
[1745827653701,0.17336415,94739.0,94738.0,0.0008486]
[1745827654278,0.17336415,94739.0,94738.0,0.0018486]
[1745827654671,0.17336415,94739.0,94738.0,0.0028486]
[1745827655546,0.56056415,94739.0,94738.0,0.0028486]
[1745827655723,0.58742053,94739.0,94738.0,0.0028486]
[1745827656266,0.58742053,94739.0,94738.0,0.0018486]
[1745827656666,0.58942053,94739.0,94738.0,0.0008486]
[1745827656881,0.58942053,94739.0,94716.0,0.000849]
[1745827656882,0.43504501,94723.0,94716.0,0.000849]
[1745827657147,0.17375324,94722.0,94716.0,0.00089479]
[1745827657361,0.05,94718.0,94716.0,0.00089479]
[1745827657641,0.4790312,94717.0,94716.0,0.00089479]
[1745827657852,0.54289608,94717.0,94716.0,0.00089479]
[1745827658104,0.20289608,94717.0,94716.0,0.00089479]
[1745827658311,0.17603582,94717.0,94716.0,0.00089479]
[1745827659086,0.45889069,94717.0,94716.0,0.00089479]
[1745827659287,0.45625034,94717.0,94716.0,0.00089479]
[1745827659497,0.45825034,94717.0,94716.0,0.00089479]
[1745827659824,0.46025034,94717.0,94716.0,0.00089479]
[1745827660024,0.45825034,94717.0,94716.0,0.00089479]
[1745827660177,0.45725034,94717.0,94716.0,0.00089479]
[1745827660637,0.45725034,94717.0,94716.0,0.00189479]
[1745827660810,0.45625034,94717.0,94716.0,0.00189479]
[1745827661011,0.45625034,94717.0,94716.0,0.00789479]
[1745827665590,0.45625034,94717.0,94716.0,0.21905235]
[1745827672376,0.45625034,94717.0,94716.0,0.00789479]
[1745827672925,0.45625034,94717.0,94714.0,0.0105581]
[1745827673147,0.06815325,94716.0,94715.0,0.21115941]
[1745827673576,0.06551363,94716.0,94715.0,0.21115941]
[1745827674126,0.06551363,94716.0,94715.0,0.21115979]
[1745827674532,0.06815327,94716.0,94715.0,0.21315979]
[1745827674677,0.06551363,94716.0,94715.0,0.21315979]
[1745827675902,0.0681531,94716.0,94715.0,0.21115979]
[1745827676360,0.0681531,94716.0,94715.0,0.21315979]
[1745827676502,0.0681531,94716.0,94715.0,0.21615979]
[1745827678440,0.45789811,94716.0,94715.0,0.21615979]
[1745827678642,0.45525864,94716.0,94715.0,0.21615979]
[1745827679917,0.45525864,94716.0,94715.0,0.005]
[1745827691432,0.45625864,94716.0,94715.0,0.005]
[1745827702692,0.61114878,94716.0,94715.0,0.005]
[1745827703400,0.64083014,94716.0,94715.0,0.005]
[1745827703565,0.61114878,94716.0,94715.0,0.005]
[1745827704368,0.61114878,94716.0,94715.0,0.002]
[1745827704895,0.61114878,94716.0,94715.0,0.003]
[1745827705114,0.61114878,94716.0,94715.0,0.001]
[1745827705521,0.61114878,94716.0,94715.0,0.002]
[1745827705913,0.50425864,94716.0,94715.0,0.002]
[1745827706102,0.45625864,94716.0,94715.0,0.002]
[1745827710550,0.5018845,94716.0,94715.0,0.002]
[1745827710961,0.45625864,94716.0,94715.0,0.002]
[1745827728049,0.45725864,94716.0,94715.0,0.002]
[1745827733322,0.48693925,94716.0,94715.0,0.002]
[1745827734612,0.45725864,94716.0,94715.0,0.002]
[1745827743151,0.45725864,94716.0,94715.0,0.21315979]
[1745827743358,0.45725864,94716.0,94715.0,0.002]
[1745827744581,0.45725864,94716.0,94715.0,0.21315979]
[1745827751450,0.45625864,94716.0,94715.0,0.21315979]
[1745827754410,0.45625864,94716.0,94715.0,0.002]
[1745827754566,0.45625864,94716.0,94715.0,0.21315979]
[1745827756102,0.45625864,94716.0,94715.0,0.30955979]
[1745827757181,0.45625864,94716.0,94715.0,0.30855979]
[1745827757533,0.45625864,94716.0,94715.0,0.004]
[1745827757747,0.45625864,94716.0,94715.0,0.21515979]
[1745827758321,0.45625864,94716.0,94715.0,0.21415979]
[1745827758778,0.45625864,94716.0,94715.0,0.21715979]
[1745827759539,0.45625864,94716.0,94715.0,0.006]
[1745827761928,0.45625864,94716.0,94715.0,0.21715979]
[1745827766377,0.06651363,94716.0,94715.0,0.21715979]
[1745827769823,0.06645632,94716.0,94715.0,0.21715979]
[1745827773046,0.06645632,94716.0,94715.0,0.26335979]
[1745827773614,0.06645632,94716.0,94715.0,0.37024993]
[1745827774057,0.06645632,94716.0,94715.0,0.15309014]
[1745827774832,0.06645632,94716.0,94715.0,0.36424993]
[1745827778772,0.06645632,94716.0,94715.0,0.76849078]
[1745827778773,0.02564031,94716.0,94715.0,0.76849078]
[1745827779025,0.38423529,94729.0,94728.0,0.55113081]
[1745827779177,0.38423529,94729.0,94728.0,0.80068095]
[1745827779386,0.44729566,94729.0,94728.0,0.80068095]
[1745827779617,0.420268,94729.0,94728.0,0.80068095]
[1745827781128,0.420268,94729.0,94728.0,0.80468095]
[1745827781303,0.420268,94729.0,94728.0,0.81267053]
[1745827782261,0.420268,94729.0,94728.0,0.81567053]
[1745827782687,0.420268,94729.0,94728.0,0.31776039]
[1745827783281,0.420268,94729.0,94728.0,0.31772039]
[1745827784022,0.03603271,94729.0,94728.0,0.31772039]
[1745827784623,0.00263892,94744.0,94743.0,0.21109738]
[1745827784824,0.42136061,94744.0,94743.0,0.21109738]
[1745827785072,0.41872169,94744.0,94743.0,0.21109738]
[1745827790279,0.41872169,94744.0,94740.0,0.21110247]
[1745827790482,0.03854636,94743.0,94742.0,0.21109956]
[1745827795660,0.42278165,94743.0,94742.0,0.21109956]
[1745827796011,0.42014276,94743.0,94742.0,0.21109956]
[1745827800637,0.03590747,94743.0,94742.0,0.21109956]
[1745827800835,0.00263856,94758.0,94753.0,0.21107511]
[1745827801042,0.03641492,94754.0,94753.0,0.21107511]
[1745827802928,0.0361728,94754.0,94753.0,0.21107511]
[1745827803471,0.00263849,94758.0,94756.0,0.21106842]
[1745827803688,0.0361728,94757.0,94756.0,0.21106842]
[1745827803887,0.00263849,94758.0,94757.0,0.2110662]
[1745827804011,0.02920563,94758.0,94757.0,0.2110662]
[1745827804445,0.41344092,94758.0,94757.0,0.2110662]
[1745827804647,0.41180243,94758.0,94757.0,0.2110662]
[1745827804959,0.41080243,94758.0,94757.0,0.2110662]
[1745827805169,0.41180243,94758.0,94757.0,0.21885138]
[1745827805361,0.41280243,94758.0,94757.0,0.21885138]
[1745827805904,0.41180243,94758.0,94757.0,0.21885138]
[1745827806206,0.41280243,94758.0,94757.0,0.21885138]
[1745827807631,0.41280243,94758.0,94757.0,0.32574152]
[1745827808732,0.02756714,94758.0,94757.0,0.32574152]
[1745827808861,0.02756714,94758.0,94757.0,0.54128237]
[1745827809063,0.02756714,94758.0,94757.0,0.613608]
[1745827809289,0.02756714,94758.0,94757.0,0.58798237]
[1745827809495,0.02656714,94758.0,94757.0,0.58798237]
[1745827809703,0.0008494,94769.0,94765.0,0.21104838]
[1745827809923,0.00130669,94767.0,94766.0,0.19954788]
[1745827810158,0.02799914,94767.0,94766.0,0.41059403]
[1745827810362,0.02799914,94767.0,94766.0,0.40953629]
[1745827811379,0.02799914,94767.0,94766.0,0.41253629]
[1745827812145,0.02799914,94767.0,94766.0,0.41653629]
[1745827814792,0.02799914,94767.0,94766.0,0.21804615]
[1745827814975,0.02799914,94767.0,94766.0,0.30872615]
[1745827815126,0.02799914,94767.0,94766.0,0.21804615]
[1745827815326,0.02799914,94767.0,94766.0,0.30872615]
[1745827816103,0.02799914,94767.0,94766.0,0.30472615]
[1745827816236,0.02799914,94767.0,94766.0,0.30172615]
[1745827816458,0.02799914,94767.0,94766.0,0.30272615]
[1745827816828,0.02799914,94767.0,94766.0,0.30372615]
[1745827817029,0.02799914,94767.0,94766.0,0.21304615]
[1745827817237,0.02799914,94767.0,94766.0,0.30372615]
[1745827817439,0.07779914,94767.0,94766.0,0.09268]
[1745827817658,0.07779914,94767.0,94766.0,0.30372615]
[1745827819087,0.46203443,94767.0,94766.0,0.30372615]
[1745827840267,0.41223443,94767.0,94766.0,0.30372615]
[1745827843449,0.51912457,94767.0,94766.0,0.002]
[1745827843679,0.64417916,94767.0,94766.0,0.002]
[1745827844277,0.64417916,94767.0,94760.0,0.08984]
[1745827844476,0.0583534,94766.0,94760.0,0.08984]
[1745827844694,0.02606039,94765.0,94760.0,0.08984]
[1745827844903,0.00263843,94764.0,94760.0,0.08984]
[1745827845120,0.02896951,94764.0,94760.0,0.08984]
[1745827845249,0.02633108,94763.0,94757.0,0.21885135]
[1745827845447,0.00263845,94762.0,94758.0,0.08984]
[1745827845665,0.02896953,94762.0,94758.0,0.08984]
[1745827845915,0.02621959,94761.0,94758.0,0.08984]
[1745827846126,0.00263844,94760.0,94758.0,0.08984]
[1745827846325,0.02885803,94760.0,94758.0,0.08984]
[1745827846493,0.02621959,94759.0,94758.0,0.30090397]
[1745827846893,0.02658525,94759.0,94758.0,0.08984]
[1745827847297,0.02922369,94766.0,94758.0,0.08984]
[1745827848439,0.41389651,94765.0,94758.0,0.08984]
[1745827848588,0.02967021,94764.0,94758.0,0.08984]
[1745827850978,0.03067021,94764.0,94758.0,0.08984]
[1745827851182,0.02622245,94763.0,94758.0,0.08984]
[1745827851336,0.00263845,94762.0,94758.0,0.08984]
[1745827851533,0.0288609,94762.0,94758.0,0.08984]
[1745827851761,0.02622245,94761.0,94758.0,0.08984]
[1745827851959,0.00263845,94760.0,94758.0,0.08984]
[1745827852165,0.02904416,94760.0,94758.0,0.08984]
[1745827854319,0.38423529,94759.0,94758.0,0.08984]
[1745827854521,0.41022849,94759.0,94758.0,0.08984]
[1745827854754,0.41022849,94759.0,94757.0,0.00778518]
[1745827854963,0.02970379,94758.0,94757.0,0.00778518]
[1745827855186,0.02970379,94758.0,94756.0,0.08984]
[1745827856112,0.02970379,94758.0,94756.0,0.0975901]
[1745827857378,0.02970379,94758.0,94756.0,0.30865831]
[1745827857598,0.02970379,94758.0,94756.0,0.0975901]
[1745827858659,0.02970379,94758.0,94756.0,0.30865645]
[1745827859438,0.02970379,94758.0,94756.0,0.0975901]
[1745827860159,0.38423529,94757.0,94756.0,0.0975901]
[1745827860380,0.41088229,94757.0,94756.0,0.0975901]
[1745827862696,0.41088229,94757.0,94756.0,0.30865852]
[1745827863240,0.41088229,94757.0,94756.0,0.21881852]
[1745827863439,0.41088229,94757.0,94756.0,0.30865852]
[1745827872390,0.41088229,94757.0,94756.0,0.30793852]
[1745827875101,0.41088229,94757.0,94756.0,0.0968701]
[1745827875446,0.41088229,94757.0,94756.0,0.21881852]
[1745827875687,0.41088229,94757.0,94756.0,0.0968701]
[1745827876061,0.41088229,94757.0,94756.0,0.30793852]
[1745827876504,0.41088229,94757.0,94756.0,0.0968701]
[1745827876683,0.41088229,94757.0,94756.0,0.30793852]
[1745827877003,0.41088229,94757.0,94756.0,0.0968701]
[1745827879377,0.41088229,94757.0,94756.0,0.0077501]
[1745827879549,0.44057233,94757.0,94756.0,0.0077501]
[1745827879721,0.44057233,94757.0,94751.0,0.08912]
[1745827879920,0.05919892,94756.0,94751.0,0.08912]
[1745827880246,0.05656028,94755.0,94751.0,0.08912]
[1745827880405,0.05919892,94754.0,94751.0,0.09707077]
[1745827880602,0.05656028,94753.0,94751.0,0.09707077]
[1745827880828,0.02860088,94752.0,94751.0,0.09707077]
[1745827882975,0.02046226,94752.0,94751.0,0.30815033]
[1745827883176,0.02767996,94754.0,94753.0,0.21107511]
[1745827883334,0.38423529,94757.0,94756.0,0.21106842]
[1745827883704,0.41091525,94757.0,94756.0,0.21106842]
[1745827884717,0.41091525,94757.0,94756.0,0.21206842]
[1745827885035,0.41091525,94757.0,94756.0,0.21306842]
[1745827889079,0.41091525,94757.0,94756.0,0.002]
[1745827889664,0.41091525,94757.0,94756.0,0.21306842]
[1745827892348,0.41091525,94757.0,94756.0,0.36655856]
[1745827892761,0.02667996,94757.0,94756.0,0.36655856]
[1745827892944,0.02667996,94757.0,94756.0,0.36555856]
[1745827893142,0.38423529,94766.0,94764.0,0.2110506]
[1745827893341,0.38423529,94766.0,94765.0,0.21104838]
[1745827893572,0.40802686,94766.0,94765.0,0.21104838]
[1745827893777,0.40802686,94766.0,94765.0,0.41533852]
[1745827893902,0.0182885,94766.0,94765.0,0.41533852]
[1745827894907,0.0182885,94766.0,94765.0,0.41833852]
[1745827895115,0.0182885,94766.0,94765.0,0.41533852]
[1745827895531,0.0182885,94766.0,94765.0,0.41733852]
[1745827896140,0.0182885,94766.0,94765.0,0.41533852]
[1745827896347,0.0182885,94766.0,94765.0,0.42033852]
[1745827896542,0.0182885,94766.0,94765.0,0.41833852]
[1745827896995,0.0008494,94782.0,94781.0,0.25651275]
[1745827897204,0.02416334,94782.0,94781.0,0.84092289]
[1745827897409,0.02420903,94782.0,94781.0,0.84092289]
[1745827897571,0.02420903,94782.0,94781.0,0.84893024]
[1745827897779,0.0102742,94782.0,94781.0,0.84893024]
[1745827897987,0.0102742,94782.0,94781.0,0.87519839]
[1745827898389,0.0102742,94782.0,94781.0,0.88973924]
[1745827898563,1e-08,94789.0,94788.0,0.65943802]
[1745827898769,1e-08,94799.0,94797.0,0.01454085]
[1745827898964,0.0008498,94811.0,94801.0,0.56550908]
[1745827899168,1e-08,94805.0,94804.0,0.61310241]
[1745827899378,4.579e-05,94805.0,94804.0,0.74977093]
[1745827900069,0.00634898,94805.0,94804.0,0.71999255]
[1745827900491,0.01334898,94805.0,94804.0,0.10889014]
[1745827900741,0.01334898,94805.0,94804.0,0.09108]
[1745827901185,0.01934898,94805.0,94804.0,0.09208]
[1745827901581,0.01934898,94805.0,94804.0,0.003]
[1745827901712,0.01934898,94805.0,94804.0,0.09108]
[1745827901918,0.01334898,94805.0,94804.0,0.09108]
[1745827902188,0.00634898,94805.0,94804.0,0.08908]
[1745827902568,0.00734898,94805.0,94804.0,0.09608]
[1745827903113,0.00734898,94805.0,94804.0,0.09908]
[1745827903315,0.00734898,94805.0,94804.0,0.01]
[1745827903518,0.00734898,94805.0,94804.0,0.09956]
[1745827904155,0.39158427,94805.0,94804.0,0.09956]
[1745827905046,0.39158427,94805.0,94804.0,0.01]
[1745827906397,0.39158427,94805.0,94804.0,0.007]
[1745827906605,0.39058427,94805.0,94802.0,0.0105483]
[1745827906797,0.00602993,94804.0,94801.0,0.22151593]
[1745827907003,0.00602993,94804.0,94800.0,0.01054852]
[1745827907004,0.00866704,94804.0,94800.0,0.01054852]
[1745827907348,0.00602993,94803.0,94800.0,0.22151831]
[1745827907554,0.00602993,94803.0,94799.0,0.01054863]
[1745827907918,0.00602993,94803.0,94801.0,0.001]
[1745827908130,0.00602993,94803.0,94800.0,0.01054852]
[1745827908326,0.00602993,94803.0,94801.0,0.21096747]
[1745827908751,0.00602993,94803.0,94800.0,0.01054852]
[1745827908934,0.00602993,94803.0,94800.0,0.2215178]
[1745827909133,0.00602993,94803.0,94802.0,0.005]
[1745827909650,0.00609039,94804.0,94803.0,0.21096378]
[1745827909816,0.38428108,94805.0,94803.0,0.21096378]
[1745827910018,0.00602818,94804.0,94803.0,0.21096378]
[1745827911003,0.00702818,94804.0,94803.0,0.21596378]
[1745827911408,0.00702818,94804.0,94803.0,0.21696378]
[1745827914035,0.00702818,94804.0,94803.0,0.006]
[1745827915982,0.39126347,94804.0,94803.0,0.006]
[1745827916775,0.39126347,94804.0,94803.0,0.21696378]
[1745827917180,0.39126347,94804.0,94803.0,0.006]
[1745827921415,0.34870249,94804.0,94803.0,0.00103776]
[1745827921669,0.54969263,94804.0,94803.0,0.00103776]
[1745827922266,0.54969263,94804.0,94803.0,0.00125515]
[1745827922510,0.54969263,94804.0,94803.0,0.00121739]
[1745827922839,0.54451645,94804.0,94803.0,0.00421739]
[1745827923062,0.54451645,94804.0,94803.0,0.00321739]
[1745827923254,0.54851645,94804.0,94803.0,0.00321739]
[1745827928124,0.00533178,94803.0,94785.0,0.01055019]
[1745827928321,0.10253106,94802.0,94785.0,0.01055019]
[1745827928525,0.10253106,94802.0,94784.0,0.21100545]
[1745827928729,0.00158025,94801.0,94784.0,0.21122282]
[1745827928935,0.10847039,94801.0,94784.0,0.21122161]
[1745827929143,0.10847039,94801.0,94786.0,0.01055008]
[1745827929372,0.10847039,94801.0,94785.0,0.01055019]
[1745827930018,0.11147039,94801.0,94785.0,0.01055019]
[1745827930232,0.10847039,94801.0,94785.0,0.01055019]
[1745827930722,0.34252631,94800.0,94785.0,0.01055019]
[1745827930917,0.00158025,94799.0,94785.0,0.01055019]